bitfinex/quotes_SOLUSD_20250315
["timestamp","ask_amount","ask_price","bid_price","bid_amount"]
[1742041202058,20.78996376,134.17,134.13,6.52]
[1742041202351,13.33666376,134.16,134.13,6.52]
[1742041202854,13.33666376,134.15,134.13,6.52]
[1742041203355,7.4545,134.15,134.13,6.5]
[1742041204532,7.4545,134.15,134.1,32.27063576]
[1742041204741,20.79116376,134.15,134.13,6.5]
[1742041206758,13.33666376,134.14,134.12,6.5]
[1742041208238,13.33666376,134.14,134.09,18.64964886]
[1742041208437,26.0903,134.15,134.11,6.5]
[1742041208639,13.33666376,134.14,134.11,6.5]
[1742041208847,13.33666376,134.13,134.11,6.5]
[1742041210242,13.33666376,134.14,134.11,6.5]
[1742041210965,7.4554,134.13,134.11,6.5]
[1742041211863,20.79206376,134.13,134.11,6.5]
[1742041212243,13.33666376,134.13,134.11,6.5]
[1742041212956,13.33666376,134.12,134.11,6.5]
[1742041213751,13.33666376,134.12,134.07,18.64964886]
[1742041213951,13.33666376,134.11,134.08,6.48]
[1742041214558,20.79366376,134.11,134.08,6.48]
[1742041215466,13.33666376,134.11,134.08,6.48]
[1742041215666,20.79276376,134.12,134.08,6.48]
[1742041217873,13.33666376,134.11,134.08,6.48]
[1742041219760,13.33666376,134.1,134.06,197.343]
[1742041219960,13.33666376,134.1,134.07,6.48]
[1742041221981,13.33666376,134.11,134.07,6.48]
[1742041222500,13.33666376,134.11,134.07,13.9387]
[1742041224905,13.33666376,134.09,134.06,0.063]
[1742041225292,13.33666376,134.09,134.07,6.46]
[1742041225781,13.33666376,134.1,134.07,6.46]
[1742041225982,20.79376376,134.1,134.07,6.46]
[1742041227013,13.33666376,134.1,134.07,6.46]
[1742041227215,20.79336376,134.11,134.07,6.46]
[1742041227394,13.33666376,134.11,134.07,6.46]
[1742041227586,20.79326376,134.11,134.07,6.46]
[1742041229191,13.33666376,134.1,134.07,6.46]
[1742041230387,7.456,134.12,134.07,6.46]
[1742041230593,13.33666376,134.1,134.07,6.46]
[1742041231013,13.33666376,134.11,134.07,6.46]
[1742041232221,20.79326376,134.11,134.07,6.46]
[1742041234519,13.33666376,134.1,134.07,6.46]
[1742041234897,13.33666376,134.11,134.07,6.46]
[1742041235099,20.79266376,134.12,134.07,19.79666376]
[1742041236719,20.79266376,134.12,134.07,6.46]
[1742041237835,13.33666376,134.11,134.07,6.46]
[1742041242724,13.33666376,134.11,134.07,6.46]
[1742041243106,20.79336376,134.11,134.07,6.46]
[1742041244520,13.33666376,134.11,134.07,13.9187]
[1742041244828,20.79316376,134.11,134.07,6.46]
[1742041248128,13.33666376,134.1,134.07,6.46]
[1742041249334,20.0,134.11,134.07,6.46]
[1742041249540,33.33666376,134.11,134.07,6.46]
[1742041250433,40.79326376,134.11,134.07,6.46]
[1742041255141,33.33666376,134.11,134.07,13.9187]
[1742041256530,40.79326376,134.11,134.07,6.46]
[1742041260333,40.79326376,134.11,134.07,13.9187]
[1742041260540,33.33666376,134.11,134.07,13.9187]
[1742041260927,40.79326376,134.11,134.07,6.46]
[1742041262340,33.33666376,134.11,134.07,6.46]
[1742041262541,20.0,134.11,134.07,6.46]
[1742041264644,20.0,134.11,134.07,13.9186]
[1742041264823,0.03,134.13,134.07,13.9186]
[1742041265024,0.03,134.13,134.07,27.25526376]
[1742041265345,13.36666376,134.13,134.07,27.25526376]
[1742041267822,13.33666376,134.12,134.07,27.25526376]
[1742041271948,13.33666376,134.12,134.07,27.25526376]
[1742041272630,13.33666376,134.12,134.07,33.42946376]
[1742041274352,13.36666376,134.13,134.08,13.33666376]
[1742041274553,13.36666376,134.13,134.09,7.4576]
[1742041278235,0.03,134.13,134.09,20.79426376]
[1742041279149,0.03,134.13,134.12,1.5833]
[1742041279353,0.03,134.13,134.12,21.29996376]
[1742041279655,0.03,134.13,134.12,7.9633]
[1742041281056,0.03,134.13,134.12,15.4193]
[1742041287058,13.36666376,134.13,134.12,6.38]
[1742041287439,0.03,134.13,134.12,6.38]
[1742041288449,0.03,134.13,134.12,13.836]
[1742041296767,0.03,134.13,134.12,45.82231262]
[1742041297158,0.03,134.13,134.12,45.88531262]
[1742041299950,13.36666376,134.18,134.13,18.64964886]
[1742041300151,13.36666376,134.18,134.13,31.98631262]
[1742041301156,0.03,134.18,134.15,31.98631262]
[1742041301778,0.03,134.18,134.17,18.64964886]
[1742041302071,0.03,134.18,134.17,32.46284886]
[1742041312061,2.5905187,134.19,134.17,32.46284886]
[1742041312359,1.87e-05,134.19,134.17,45.79951262]
[1742041314067,1.87e-05,134.19,134.17,32.46284886]
[1742041314266,1.87e-05,134.19,134.17,45.79951262]
[1742041314483,1.87e-05,134.19,134.18,33.58021262]
[1742041315290,1.87e-05,134.19,134.18,345.58021262]
[1742041316172,1.87e-05,134.19,134.18,353.03281262]
[1742041316774,1.87e-05,134.19,134.18,47.39281262]
[1742041317466,1.87e-05,134.19,134.18,47.67713576]
[1742041317673,1.87e-05,134.19,134.18,126.0903215]
[1742041319187,11.74736499,134.29,134.19,18.933972]
[1742041319388,13.33666376,134.26,134.22,18.64964886]
[1742041319593,13.33666376,134.26,134.24,18.64964886]
[1742041319888,13.33666376,134.27,134.24,18.64964886]
[1742041320275,11.74736499,134.29,134.26,18.64964886]
[1742041320474,25.08402875,134.29,134.26,18.64964886]
[1742041320794,13.33666376,134.28,134.26,18.64964886]
[1742041321186,16.88671376,134.28,134.26,18.64964886]
[1742041321781,16.88671376,134.28,134.27,7.4476]
[1742041322095,3.55005,134.28,134.27,7.4476]
[1742041322789,16.88671376,134.28,134.27,7.4476]
[1742041323476,3.55005,134.28,134.27,7.4476]
[1742041324996,16.88671376,134.28,134.27,7.4476]
[1742041325491,16.88671376,134.28,134.27,6.9476]
[1742041325991,16.88671376,134.28,134.24,7.4493]
[1742041326195,23.55005,134.28,134.26,6.38]
[1742041326692,20.0,134.27,134.26,6.38]
[1742041327278,33.33666376,134.27,134.26,6.38]
[1742041327687,33.33666376,134.27,134.26,13.8282]
[1742041327688,13.33666376,134.27,134.26,13.8282]
[1742041327898,16.88671376,134.28,134.26,13.8282]
[1742041328192,13.33666376,134.27,134.26,13.8282]
[1742041328593,13.33666376,134.27,134.24,6.38]
[1742041328793,13.33666376,134.25,134.24,13.829]
[1742041328986,13.33666376,134.26,134.24,13.829]
[1742041332799,3.55005,134.28,134.24,13.829]
[1742041333106,13.33666376,134.26,134.24,13.829]
[1742041333408,13.33666376,134.27,134.24,13.829]
[1742041333791,0.03,134.26,134.24,13.829]
[1742041336105,3.58005,134.26,134.24,13.829]
[1742041339513,3.58005,134.26,134.24,27.16566376]
[1742041339926,3.58005,134.26,134.24,13.829]
[1742041348653,3.58005,134.26,134.24,27.16566376]
[1742041351955,3.58005,134.26,134.24,13.829]
[1742041353776,3.58005,134.26,134.24,27.16566376]
[1742041356969,3.58005,134.26,134.24,27.22866376]
[1742041359342,5e-05,134.26,134.25,31.98631262]
[1742041360263,5e-05,134.26,134.25,13.33666376]
[1742041360458,5e-05,134.26,134.24,27.22866376]
[1742041362142,53.47777293,134.37,134.27,0.14216157]
[1742041362343,53.47777293,134.37,134.34,31.98631262]
[1742041362545,53.47777293,134.37,134.35,6.54]
[1742041362744,53.47777293,134.37,134.33,13.33666376]
[1742041362745,34.65196685,134.36,134.3,18.64964886]
[1742041362945,25.07036135,134.36,134.29,6.54]
[1742041363152,25.07036135,134.36,134.3,31.98631262]
[1742041363345,25.07036135,134.36,134.32,13.33666376]
[1742041363545,25.07036135,134.36,134.35,13.33666376]
[1742041363761,25.07036135,134.36,134.35,38.54631262]
[1742041363967,25.07036135,134.36,134.35,45.98951262]
[1742041364168,23.49472998,134.37,134.36,18.64964886]
[1742041364448,23.49472998,134.37,134.36,31.98631262]
[1742041365068,8.995e-05,134.38,134.37,0.14216157]
[1742041365276,4.479e-05,134.39,134.37,13.33666376]
[1742041365574,4.479e-05,134.39,134.37,31.98631262]
[1742041366142,4.479e-05,134.39,134.38,13.33666376]
[1742041366346,4.479e-05,134.39,134.38,31.98631262]
[1742041366559,4.479e-05,134.39,134.38,18.64964886]
[1742041366865,4.479e-05,134.39,134.38,17.64964886]
[1742041367166,4.479e-05,134.39,134.38,30.98631262]
[1742041367868,0.5,134.42,134.38,13.33666376]
[1742041368250,0.5,134.42,134.39,13.33666376]
[1742041368451,0.5,134.42,134.4,6.58]
[1742041370663,13.33666376,134.41,134.4,6.58]
[1742041370975,13.33666376,134.41,134.36,197.083]
[1742041371265,0.5,134.42,134.36,197.083]
[1742041371266,13.33666376,134.39,134.36,203.663]
[1742041371951,13.33666376,134.4,134.36,203.663]
[1742041372654,13.33666376,134.39,134.36,203.663]
[1742041373573,13.33666376,134.41,134.36,203.663]
[1742041373759,13.83666376,134.42,134.36,216.99966376]
[1742041374463,13.83666376,134.42,134.36,216.99966376]
[1742041374670,13.83666376,134.42,134.37,6.56]
[1742041374847,13.33666376,134.41,134.37,6.56]
[1742041375266,33.33666376,134.41,134.37,6.56]
[1742041377064,13.33666376,134.39,134.37,6.56]
[1742041378867,13.33666376,134.4,134.37,6.56]
[1742041379265,13.33666376,134.39,134.37,6.56]
[1742041380477,13.33666376,134.4,134.37,6.56]
[1742041381372,20.0,134.41,134.37,6.56]
[1742041381570,33.33666376,134.41,134.37,6.56]
[1742041383269,40.77656376,134.41,134.37,6.56]
[1742041383574,13.33666376,134.4,134.37,6.56]
[1742041383781,13.33666376,134.41,134.37,6.56]
[1742041384170,0.03,134.39,134.37,6.56]
[1742041384868,0.03,134.39,134.37,27.33866376]
[1742041385582,21.27616376,134.42,134.37,27.33866376]
[1742041386982,21.27616376,134.42,134.37,6.56]
[1742041387357,13.33666376,134.41,134.37,6.56]
[1742041388688,13.33666376,134.39,134.37,6.56]
[1742041389055,7.4401,134.41,134.37,6.56]
[1742041389261,13.33666376,134.4,134.37,6.56]
[1742041389577,13.33666376,134.4,134.36,197.083]
[1742041389783,13.33666376,134.39,134.37,6.54]
[1742041390001,13.33666376,134.39,134.36,197.083]
[1742041390002,13.33666376,134.38,134.36,0.063]
[1742041390295,13.33666376,134.37,134.36,0.063]
[1742041391059,20.77876376,134.37,134.36,0.063]
[1742041392080,20.92092533,134.37,134.36,0.0001]
[1742041392279,39.52622533,134.37,134.3,6.54]
[1742041392776,13.33666376,134.31,134.3,6.54]
[1742041392979,13.33666376,134.31,134.29,196.88]
[1742041393174,13.33666376,134.3,134.29,196.88]
[1742041393354,13.33666376,134.31,134.29,196.88]
[1742041395265,13.33666376,134.33,134.29,196.88]
[1742041396580,13.33666376,134.33,134.29,204.3264]
[1742041396761,13.33666376,134.35,134.3,13.33666376]
[1742041397177,13.33666376,134.35,134.31,7.4454]
[1742041397384,13.33666376,134.35,134.32,6.54]
[1742041398193,13.33666376,134.34,134.32,6.54]
[1742041398983,13.33666376,134.35,134.32,6.54]
[1742041399784,7.4422,134.37,134.32,6.54]
[1742041399785,13.33666376,134.34,134.32,6.54]
[1742041400586,13.33666376,134.33,134.32,6.54]
[1742041407169,20.0,134.37,134.32,6.54]
[1742041407370,13.33666376,134.34,134.32,6.54]
[1742041407783,0.03,134.39,134.33,15.08042533]
[1742041407962,0.03,134.39,134.35,13.33666376]
[1742041408167,13.33666376,134.38,134.33,14.93826376]
[1742041408380,13.33666376,134.38,134.33,1.6016]
[1742041408769,13.33666376,134.37,134.33,1.6016]
[1742041409668,0.03,134.39,134.33,1.6016]
[1742041409869,13.33666376,134.38,134.33,1.6016]
[1742041410068,13.33666376,134.37,134.33,1.6016]
[1742041410264,13.33666376,134.38,134.33,1.6016]
[1742041411284,13.33666376,134.37,134.33,1.6016]
[1742041412094,13.33666376,134.38,134.33,1.6016]
[1742041412794,13.33666376,134.37,134.33,1.6016]
[1742041413581,0.03,134.38,134.33,1.6016]
[1742041413894,13.33666376,134.37,134.33,1.6016]
[1742041414669,0.03,134.38,134.33,1.6016]
[1742041414876,0.03,134.38,134.33,14.93826376]
[1742041415080,13.36666376,134.38,134.33,14.93826376]
[1742041415696,13.33666376,134.37,134.33,1.6016]
[1742041418798,13.36666376,134.38,134.33,1.6016]
[1742041419601,13.33666376,134.37,134.33,1.6016]
[1742041419979,13.33666376,134.35,134.3,1.5812]
[1742041420185,13.33666376,134.34,134.31,6.62]
[1742041422603,0.03,134.38,134.29,6.249]
[1742041422604,13.33666376,134.33,134.29,6.249]
[1742041422809,13.33666376,134.32,134.28,6.663]
[1742041425006,13.33666376,134.32,134.31,0.063]
[1742041429325,13.33666376,134.33,134.31,0.063]
[1742041429510,13.33666376,134.32,134.31,0.063]
[1742041438920,0.14216157,134.35,134.31,0.063]
[1742041439125,13.33666376,134.32,134.31,0.063]
[1742041458335,0.14216157,134.35,134.31,0.063]
[1742041458541,13.33666376,134.32,134.31,0.063]
[1742041462653,20.14216157,134.36,134.31,0.063]
[1742041462855,13.33666376,134.34,134.31,0.063]
[1742041464257,13.33666376,134.33,134.31,0.063]
[1742041469150,13.33666376,134.32,134.31,0.063]
[1742041477663,13.33666376,134.32,134.31,0.063]
[1742041479760,20.92372533,134.32,134.31,0.063]
[1742041480868,13.47882533,134.32,134.31,0.063]
[1742041482155,20.92372533,134.32,134.31,0.063]
[1742041483977,13.47882533,134.32,134.31,0.063]
[1742041485554,20.92372533,134.32,134.31,0.063]
[1742041490375,20.92372533,134.32,134.28,0.063]
[1742041490376,0.14216157,134.31,134.28,0.063]
[1742041490578,13.33666376,134.29,134.28,0.063]
[1742041491979,20.78316376,134.29,134.28,0.063]
[1742041493154,13.33666376,134.29,134.28,0.063]
[1742041495264,20.0,134.3,134.28,0.063]
[1742041495583,33.33666376,134.3,134.28,0.063]
[1742041495765,13.33666376,134.29,134.28,0.063]
[1742041497489,20.78316376,134.29,134.28,0.063]
[1742041498277,13.33666376,134.29,134.28,0.063]
[1742041501793,27.4461,134.3,134.28,0.063]
[1742041501993,13.33666376,134.29,134.28,0.063]
[1742041503298,20.78316376,134.29,134.28,0.063]
[1742041503885,13.33666376,134.29,134.28,0.063]
[1742041504082,7.4457,134.31,134.28,0.063]
[1742041504669,13.33666376,134.29,134.28,0.063]
[1742041508978,0.03,134.31,134.28,6.503]
[1742041509493,0.03,134.31,134.29,1.5813]
[1742041510676,0.03,134.31,134.29,9.0276]
[1742041515007,0.03,134.31,134.29,22.36426376]
[1742041515902,0.03,134.31,134.29,9.0276]
[1742041516090,0.03,134.31,134.3,13.33666376]
[1742041516275,0.03,134.31,134.3,31.98631262]
[1742041517196,0.03,134.37,134.33,1.5]
[1742041517405,0.03,134.37,134.35,13.33666376]
[1742041517591,0.03,134.37,134.34,25.90386376]
[1742041519096,0.03,134.37,134.35,7.4432]
[1742041519785,0.03,134.37,134.35,20.77986376]
[1742041520610,0.03,134.37,134.35,7.4432]
[1742041521198,0.03,134.37,134.35,20.77986376]
[1742041521604,0.03,134.37,134.35,7.4432]
[1742041522099,13.33666376,134.36,134.33,7.96]
[1742041522302,13.33666376,134.35,134.33,6.46]
[1742041523496,13.33666376,134.34,134.33,6.46]
[1742041524190,20.78036376,134.34,134.31,197.02]
[1742041524384,13.33666376,134.33,134.31,203.48]
[1742041524603,13.33666376,134.34,134.31,203.48]
[1742041525003,13.33666376,134.33,134.31,203.48]
[1742041525398,0.17216157,134.37,134.31,203.48]
[1742041525610,13.33666376,134.34,134.31,203.48]
[1742041525911,13.33666376,134.33,134.31,203.48]
[1742041526693,13.33666376,134.34,134.31,210.9254]
[1742041527487,13.33666376,134.34,134.31,203.48]
[1742041527985,13.33666376,134.35,134.31,210.9253]
[1742041528188,7.4722,134.37,134.33,7.4443]
[1742041528189,13.36666376,134.37,134.33,7.4443]
[1742041528906,13.33666376,134.36,134.33,7.4443]
[1742041529206,13.33666376,134.36,134.32,26.09454886]
[1742041529413,0.03,134.37,134.33,13.33666376]
[1742041530287,0.03,134.37,134.34,7.4437]
[1742041532398,0.03,134.37,134.34,20.78036376]
[1742041533913,0.03,134.37,134.36,13.33666376]
[1742041534103,0.03,134.37,134.36,19.77666376]
[1742041534502,0.03,134.37,134.36,27.21926376]
[1742041534711,0.03,134.37,134.36,52.06327419]
[1742041539208,0.03,134.38,134.37,18.79181043]
[1742041539415,0.03,134.38,134.37,32.12847419]
[1742041540500,0.03,134.38,134.37,31.98631262]
[1742041540697,0.03,134.38,134.37,39.42841262]
[1742041545133,0.5,134.42,134.37,59.14959163]
[1742041545334,0.5,134.42,134.4,13.33666376]
[1742041545638,0.5,134.42,134.41,6.44]
[1742041546331,0.5,134.42,134.41,13.8799]
[1742041546538,0.5,134.42,134.41,45.86621262]
[1742041546946,2.5613512,134.45,134.43,1.5944]
[1742041547243,2.5613512,134.45,134.44,31.98631262]
[1742041547447,2.5613512,134.45,134.43,1.5944]
[1742041547738,2.5613512,134.45,134.44,31.98631262]
[1742041548337,2.5613512,134.45,134.44,39.42451262]
[1742041548718,2.0613512,134.45,134.44,39.42451262]
[1742041549951,2.0613512,134.45,134.44,26.08784886]
[1742041550148,5.12e-05,134.45,134.44,118.1220215]
[1742041550327,5.12e-05,134.45,134.44,314.9620215]
[1742041551245,5.12e-05,134.45,134.44,321.4323215]
[1742041551830,0.03,134.49,134.45,0.14216157]
[1742041552038,0.03,134.49,134.48,13.33666376]
[1742041552230,0.03,134.49,134.48,32.12847419]
[1742041552728,0.03,134.49,134.48,39.56447419]
[1742041553128,0.03,134.49,134.48,41.07907419]
[1742041553328,0.03,134.49,134.48,120.74928242]
[1742041554545,0.03,134.49,134.48,119.49225993]
[1742041556637,0.03,134.49,134.48,119.6344215]
[1742041556839,0.03,134.49,134.48,120.74932042]
[1742041557141,0.03,134.49,134.48,121.24932042]
[1742041557939,0.03,134.49,134.48,127.21962042]
[1742041558252,0.0001,134.51,134.5,38.933972]
[1742041558426,0.0001,134.51,134.5,53.38509813]
[1742041559243,0.0001,134.52,134.51,18.933972]
[1742041559436,0.0001,134.52,134.51,117.1638215]
[1742041560248,0.0001,134.52,134.51,124.5981215]
[1742041560621,0.0001,134.52,134.51,117.97595993]
[1742041560822,0.0001,134.52,134.47,189.44665504]
[1742041560823,13.33676376,134.52,134.47,6.52]
[1742041561041,13.33676376,134.52,134.47,19.85666376]
[1742041561246,0.0001,134.52,134.48,18.64964886]
[1742041561835,13.33666376,134.51,134.47,6.52]
[1742041562245,20.62762477,134.51,134.47,6.52]
[1742041562543,20.62762477,134.51,134.46,46.71437363]
[1742041562544,7.434,134.52,134.44,295.88081051]
[1742041562743,20.62762477,134.48,134.45,6.52]
[1742041564358,28.06392477,134.48,134.45,6.52]
[1742041564658,28.06322477,134.49,134.45,6.52]
[1742041565029,7.4356,134.49,134.45,6.52]
[1742041565247,20.62762477,134.48,134.45,6.52]
[1742041565553,20.62762477,134.46,134.45,6.52]
[1742041565849,1.6026,134.5,134.45,6.52]
[1742041566051,20.62762477,134.47,134.45,6.52]
[1742041566643,20.62762477,134.47,134.43,6.52]
[1742041567044,20.62762477,134.46,134.43,6.52]
[1742041567234,20.62762477,134.45,134.43,6.52]
[1742041567549,20.62762477,134.44,134.4,6.52]
[1742041567731,20.62762477,134.43,134.4,6.52]
[1742041567931,6.6548,134.46,134.4,6.52]
[1742041567932,20.62762477,134.44,134.4,6.52]
[1742041568858,20.62762477,134.44,134.4,6.583]
[1742041569163,20.62762477,134.44,134.4,0.063]
[1742041569164,20.62762477,134.41,134.4,0.063]
[1742041572648,9.035,134.43,134.4,0.063]
[1742041572649,20.62762477,134.42,134.4,0.063]
[1742041573550,20.62762477,134.41,134.4,0.063]
[1742041574055,20.62762477,134.42,134.4,0.063]
[1742041575554,20.62762477,134.44,134.4,0.063]
[1742041577044,20.62762477,134.44,134.4,7.5034]
[1742041577547,20.62762477,134.43,134.4,7.5034]
[1742041577747,20.62762477,134.43,134.4,0.063]
[1742041578259,6.6548,134.46,134.4,20.69062477]
[1742041578467,20.62762477,134.45,134.4,20.69062477]
[1742041578967,20.62762477,134.45,134.41,7.4399]
[1742041579465,20.62762477,134.45,134.41,28.06752477]
[1742041580037,20.62762477,134.45,134.41,20.62762477]
[1742041580255,20.62762477,134.45,134.4,28.13092477]
[1742041581149,20.62762477,134.44,134.4,7.5033]
[1742041581844,20.62762477,134.44,134.4,0.063]
[1742041582167,20.62762477,134.43,134.4,0.063]
[1742041582480,20.62762477,134.42,134.4,0.063]
[1742041586868,20.62762477,134.43,134.4,0.063]
[1742041590758,20.62762477,134.42,134.4,0.063]
[1742041591171,20.62762477,134.41,134.4,0.063]
[1742041592270,41.39741111,134.41,134.4,0.063]
[1742041592654,20.76978634,134.41,134.4,0.063]
[1742041592849,28.20968634,134.41,134.4,0.063]
[1742041593051,48.97947268,134.41,134.4,0.063]
[1742041595573,67.62912154,134.41,134.4,0.063]
[1742041595774,74.20262154,134.41,134.4,0.063]
[1742041597068,20.0,134.38,134.37,0.063]
[1742041597275,40.62762477,134.38,134.37,0.063]
[1742041599657,48.06912477,134.38,134.37,0.063]
[1742041600484,40.62762477,134.38,134.37,0.063]
[1742041600680,48.06912477,134.38,134.37,0.063]
[1742041601173,48.21128634,134.38,134.37,0.063]
[1742041602184,7.4411,134.39,134.37,0.063]
[1742041602378,33.23008851,134.38,134.37,0.063]
[1742041606778,40.67158851,134.38,134.37,0.063]
[1742041617376,33.23008851,134.38,134.37,0.063]
[1742041618499,40.67158851,134.38,134.37,0.063]
[1742041619000,13.23008851,134.38,134.37,0.063]
[1742041622800,13.23008851,134.4,134.37,0.063]
[1742041623895,13.23008851,134.41,134.37,0.063]
[1742041624785,13.23008851,134.4,134.37,0.063]
[1742041630999,13.26008851,134.4,134.37,0.063]
[1742041632898,13.23008851,134.39,134.37,0.063]
[1742041640809,0.03,134.4,134.37,0.063]
[1742041640810,13.26008851,134.4,134.37,0.063]
[1742041641202,0.03,134.4,134.37,19.67308851]
[1742041641407,0.03,134.4,134.38,13.23008851]
[1742041642819,0.03,134.4,134.39,7.441]
[1742041644218,0.03,134.4,134.37,6.443]
[1742041645616,0.03,134.4,134.37,13.8849]
[1742041649818,0.03,134.4,134.37,27.11498851]
[1742041650038,0.03,134.4,134.37,13.8849]
[1742041657927,0.03,134.4,134.37,45.72028851]
[1742041666311,0.03,134.4,134.39,7.441]
[1742041667117,0.03,134.4,134.39,26.09064886]
[1742041667317,0.03,134.4,134.39,39.32073737]
[1742041671030,0.03,134.4,134.39,39.46289894]
[1742041671213,0.0001,134.4,134.39,47.57109894]
[1742041671412,0.0001,134.4,134.39,126.12644625]
[1742041672718,0.3985694,134.5,134.4,20.16954886]
[1742041672926,13.23008851,134.49,134.45,7.4377]
[1742041673226,13.23008851,134.48,134.46,6.38]
[1742041674233,13.23008851,134.49,134.46,6.38]
[1742041677517,13.23008851,134.49,134.46,13.8169]
[1742041677936,13.62865791,134.5,134.46,13.8169]
[1742041679252,0.03,134.49,134.46,13.8169]
[1742041679547,13.26008851,134.49,134.46,13.8169]
[1742041679915,13.26008851,134.49,134.46,6.38]
[1742041684219,0.03,134.49,134.46,6.38]
[1742041684426,13.26008851,134.49,134.46,6.38]
[1742041685065,13.23008851,134.48,134.46,6.38]
[1742041685633,13.26008851,134.49,134.46,6.38]
[1742041685831,13.23008851,134.47,134.46,6.38]
[1742041687237,13.23008851,134.48,134.46,6.38]
[1742041688247,13.23008851,134.47,134.46,6.38]
[1742041690347,13.26008851,134.49,134.46,6.38]
[1742041690547,13.26008851,134.49,134.46,13.8171]
[1742041691955,13.26008851,134.49,134.46,6.38]
[1742041692342,13.23008851,134.48,134.46,6.38]
[1742041694553,13.23008851,134.47,134.46,6.38]
[1742041696859,13.23008851,134.48,134.46,6.38]
[1742041697032,20.66618851,134.48,134.46,6.38]
[1742041697237,13.23008851,134.47,134.46,6.38]
[1742041700836,20.66668851,134.47,134.4,1.5199]
[1742041701039,13.23008851,134.44,134.41,6.36]
[1742041702642,20.66838851,134.44,134.41,6.36]
[1742041702849,13.23008851,134.43,134.41,6.36]
[1742041704653,13.23008851,134.44,134.41,6.36]
[1742041710567,7.4379,134.45,134.41,6.36]
[1742041710755,13.23008851,134.44,134.41,6.36]
[1742041713171,13.23008851,134.43,134.41,6.36]
[1742041713850,13.23008851,134.42,134.41,6.36]
[1742041715966,13.23008851,134.43,134.41,6.36]
[1742041716972,0.03,134.44,134.41,6.36]
[1742041717367,13.23008851,134.43,134.41,6.36]
[1742041717571,13.23008851,134.42,134.41,6.36]
[1742041722560,13.23008851,134.43,134.41,6.36]
[1742041726681,0.03,134.44,134.41,27.02968851]
[1742041726857,0.03,134.44,134.41,13.7996]
[1742041731555,0.03,134.44,134.41,6.36]
[1742041731556,13.23008851,134.42,134.41,6.36]
[1742041732360,13.23008851,134.43,134.41,6.36]
[1742041735879,20.66898851,134.43,134.41,6.36]
[1742041737783,20.66898851,134.43,134.4,6.6234]
[1742041738677,13.23008851,134.42,134.4,6.6234]
[1742041738884,13.23008851,134.42,134.4,0.063]
[1742041739080,13.23008851,134.41,134.4,0.063]
[1742041740879,0.03,134.43,134.4,0.063]
[1742041741063,0.03,134.43,134.4,13.29308851]
[1742041741263,0.03,134.43,134.41,18.64964886]
[1742041742883,0.03,134.43,134.42,26.08894886]
[1742041746489,0.03,134.43,134.42,7.4393]
[1742041755391,0.03,134.43,134.42,26.08894886]
[1742041755769,0.0001,134.44,134.43,18.79181043]
[1742041755966,0.0001,134.44,134.43,118.44558468]
[1742041757083,0.0001,134.44,134.43,126.99949516]
[1742041757895,0.03,134.49,134.44,0.14216157]
[1742041758197,0.03,134.49,134.47,18.64964886]
[1742041758380,0.03,134.49,134.48,6.36]
[1742041759698,0.03,134.49,134.48,13.796]
[1742041764401,0.03,134.49,134.48,6.36]
[1742041764606,13.26008851,134.49,134.48,6.36]
[1742041767683,0.03,134.49,134.48,6.36]
[1742041768289,0.03,134.49,134.47,7.4363]
[1742041768489,0.03,134.49,134.48,6.36]
[1742041770304,0.03,134.49,134.48,32.44564886]
[1742041770503,0.03,134.49,134.48,45.67573737]
[1742041770699,0.3985694,134.5,134.49,18.933972]
[1742041770907,0.3985694,134.5,134.49,32.02189894]
[1742041771490,0.3985694,134.5,134.49,344.02189894]
[1742041771993,0.3985694,134.5,134.49,32.02189894]